bitfinex-derivatives/quotes_BNBF0:USTF0_20250908
["timestamp","ask_amount","ask_price","bid_price","bid_amount"]
[1757294193758,1.00059324,880.84,878.31,0.76441154]
[1757294193958,1.00059324,880.84,878.33,1.207]
[1757294195457,1.00059324,880.85,878.33,1.207]
[1757294195860,1.00059324,880.89,878.36,0.76441154]
[1757294196360,1.00059324,880.9,878.35,0.76441154]
[1757294196558,1.00059324,881.27,878.33,1.207]
[1757294196756,1.00059324,881.68,878.96,0.76441154]
[1757294196959,1.00059324,881.77,879.23,0.76441154]
[1757294197157,1.00059324,881.78,879.22,0.76441154]
[1757294197360,1.00059324,881.83,879.18,0.76441154]
[1757294197856,1.00059324,881.88,879.14,0.76441154]
[1757294198056,1.00059324,881.88,879.12,0.76441154]
[1757294198361,1.00059324,881.93,879.07,0.76441154]
[1757294198762,2.54488766,883.09,879.07,0.76441154]
[1757294198763,1.00059324,881.94,879.07,0.76441154]
[1757294199163,1.00059324,881.92,879.03,0.76441154]
[1757294199361,1.00059324,881.91,879.01,0.76441154]
[1757294199564,1.00059324,881.88,878.98,0.76441154]
[1757294199964,1.00059324,881.89,878.99,0.76441154]
[1757294200260,1.00059324,881.77,879.05,0.76441154]
[1757294200460,1.00059324,881.79,879.01,0.76441154]
[1757294201064,1.00059324,881.79,879.0,0.76441154]
[1757294201365,1.00059324,881.81,878.96,0.76441154]
[1757294201859,1.00059324,881.82,878.96,0.76441154]
[1757294202265,1.00059324,881.82,878.95,0.76441154]
[1757294202473,1.00059324,881.86,878.94,0.76441154]
[1757294203265,1.00059324,881.86,878.91,0.76441154]
[1757294203561,1.00059324,881.89,878.91,0.76441154]
[1757294204165,1.00059324,881.9,878.91,0.76441154]
[1757294204365,1.00059324,881.92,878.89,0.76441154]
[1757294205161,1.00059324,882.12,878.82,0.76441154]
[1757294205366,1.00059324,882.22,878.85,0.76441154]
[1757294205968,1.00059324,882.54,879.17,0.76441154]
[1757294206165,1.00059324,882.55,879.18,0.76441154]
[1757294206369,1.00059324,882.58,879.16,0.76441154]
[1757294207267,1.00059324,882.6,879.13,0.76441154]
[1757294207866,1.00059324,882.53,879.16,0.76441154]
[1757294208069,1.00059324,882.31,879.19,0.76441154]
[1757294208265,1.00059324,882.31,879.18,0.76441154]
[1757294208470,1.00059324,882.33,879.16,0.76441154]
[1757294208668,1.00059324,882.35,879.16,0.76441154]
[1757294208967,1.00059324,882.35,879.15,0.76441154]
[1757294209270,1.00059324,882.36,879.15,0.76441154]
[1757294209570,1.00059324,882.38,879.15,0.76441154]
[1757294209765,1.00059324,882.39,879.14,0.76441154]
[1757294209970,1.00059324,882.57,879.1,0.76441154]
[1757294210169,1.00059324,883.06,879.48,0.76441154]
[1757294210369,1.00059324,883.09,879.45,0.76441154]
[1757294210968,1.00059324,883.1,879.45,0.76441154]
[1757294211272,1.00059324,883.09,879.45,0.76441154]
[1757294211471,1.00059324,883.09,878.33,1.207]
[1757294211472,1.00059324,882.99,879.47,0.76441154]
[1757294212173,1.00059324,883.0,879.47,0.76441154]
[1757294212472,1.49776114,883.21,878.33,1.207]
[1757294212473,1.00059324,883.02,879.45,0.76441154]
[1757294212974,1.00059324,883.02,879.44,0.76441154]
[1757294213373,1.00059324,883.02,878.33,1.207]
[1757294213374,1.00059324,883.14,879.38,0.76441154]
[1757294213673,1.00059324,883.15,879.38,0.76441154]
[1757294214169,1.00059324,883.23,879.34,0.76441154]
[1757294214369,1.00059324,882.78,879.34,0.76441154]
[1757294214573,1.00059324,882.78,879.19,1.01137193]
[1757294214574,1.00059324,882.74,879.31,0.76441154]
[1757294214774,3.53847231,884.46,879.3,0.76441154]
[1757294214775,1.00059324,882.75,879.3,0.76441154]
[1757294215069,1.00059324,882.76,879.3,0.76441154]
[1757294215571,1.00059324,882.8,879.27,0.76441154]
[1757294215776,1.00059324,882.82,879.27,0.7362071]
[1757294215973,1.00059324,882.56,879.01,0.7362071]
[1757294216473,1.00059324,882.46,878.98,0.7362071]
[1757294216775,1.00059324,882.49,878.99,0.7362071]
[1757294217177,1.00059324,882.5,878.98,0.7362071]
[1757294217373,1.00059324,882.51,878.97,0.7362071]
[1757294217573,1.00059324,882.52,878.97,0.7362071]
[1757294217777,1.00059324,882.53,878.96,0.7362071]
[1757294218074,1.00059324,882.54,878.96,0.7362071]
[1757294218274,1.00059324,882.54,878.97,1.6]
[1757294219178,1.00059324,882.53,878.97,2.3362071]
[1757294219378,1.00059324,882.53,878.97,1.6]
[1757294219676,1.00059324,882.54,878.97,1.6]
[1757294219974,1.00059324,882.53,878.97,2.3362071]
[1757294220275,1.00059324,882.5,878.98,0.7362071]
[1757294220780,1.00059324,882.51,878.98,0.7362071]
[1757294221279,1.00059324,882.5,878.98,0.7362071]
[1757294221982,1.00059324,882.49,878.98,0.7362071]
[1757294222477,1.00059324,882.48,878.99,0.7362071]
[1757294222881,1.00059324,882.49,879.0,0.7362071]
[1757294223080,1.00059324,882.48,878.99,0.7362071]
[1757294223279,1.00059324,882.47,879.01,0.7362071]
[1757294223577,1.00059324,882.49,879.0,0.7362071]
[1757294223778,1.00059324,882.48,879.0,0.7362071]
[1757294224182,1.00059324,882.49,879.0,0.7362071]
[1757294224484,1.00059324,882.49,879.01,0.7362071]
[1757294224880,1.00059324,882.47,879.02,0.7362071]
[1757294225580,1.00059324,882.77,878.97,1.6]
[1757294225886,1.00059324,882.91,879.03,0.7362071]
[1757294226086,1.00059324,882.52,879.02,0.7362071]
[1757294226385,1.00059324,882.45,878.99,0.7362071]
[1757294226584,1.00059324,882.46,878.99,0.7362071]
[1757294226885,1.00059324,882.28,878.97,1.6]
[1757294227086,1.00059324,882.34,878.97,1.6]
[1757294227380,1.00059324,882.35,878.97,1.6]
[1757294227586,1.00059324,882.4,878.97,1.6]
[1757294227785,1.00059324,882.32,878.97,1.6]
[1757294228281,1.49776114,882.51,878.97,1.6]
[1757294228282,1.00059324,882.31,878.97,1.6]
[1757294228486,1.00059324,882.39,878.97,1.6]
[1757294228684,1.00059324,882.04,878.97,1.6]
[1757294228984,1.00059324,882.05,878.97,1.6]
[1757294229282,1.00059324,882.02,878.97,1.6]
[1757294229487,1.00059324,882.03,878.97,1.6]
[1757294229786,2.54488766,883.17,878.97,1.6]
[1757294229787,1.00059324,882.01,878.97,1.6]
[1757294230388,1.00059324,881.97,878.97,1.6]
[1757294230688,1.00059324,881.98,878.97,1.6]
[1757294231089,1.00059324,881.97,878.97,1.6]
[1757294231585,1.00059324,881.88,878.97,1.6]
[1757294231989,1.00059324,881.89,878.97,1.6]
[1757294232292,1.00059324,881.78,878.97,1.6]
[1757294233387,1.00059324,881.73,878.97,1.6]
[1757294234386,1.00059324,881.67,878.97,1.6]
[1757294235188,1.00059324,881.9,878.97,1.6]
[1757294235389,1.00059324,881.94,879.01,0.7362071]
[1757294235590,1.00059324,881.93,879.01,0.7362071]
[1757294235992,1.00059324,881.95,879.02,0.7362071]
[1757294236392,1.00059324,881.88,879.09,0.7362071]
[1757294236688,1.00059324,881.77,879.11,0.7362071]
[1757294236889,1.00059324,881.79,879.14,0.7362071]
[1757294237087,1.00059324,881.78,879.14,0.7362071]
[1757294237391,1.00059324,881.71,879.22,0.7362071]
[1757294237588,1.00059324,881.65,879.24,0.7362071]
[1757294238087,1.00059324,881.73,879.2,0.7362071]
[1757294238294,1.00059324,881.85,879.27,0.7362071]
[1757294238494,1.00059324,881.76,879.36,0.7362071]
[1757294239196,1.00059324,881.76,879.1,1.01137193]
[1757294239197,1.00059324,881.75,879.35,0.7362071]
[1757294239390,1.00059324,881.64,879.44,0.7362071]
[1757294239792,1.00059324,881.64,878.97,1.6]
[1757294239793,1.00059324,881.52,879.49,0.7362071]
[1757294239989,1.00059324,881.35,879.54,0.7362071]
[1757294240194,2.54488766,882.11,879.53,0.7362071]
[1757294240195,1.00059324,881.34,879.53,0.7362071]
[1757294240393,1.00059324,881.33,879.55,0.7362071]
[1757294240690,1.00059324,881.24,879.47,0.7362071]
[1757294240892,1.00059324,881.26,879.45,0.7362071]
[1757294241090,1.00059324,881.27,879.45,0.7362071]
[1757294241293,1.00059324,881.25,879.47,0.7362071]
[1757294242394,1.00059324,881.25,879.49,0.7362071]
[1757294243495,0.9391251,881.24,879.51,0.7362071]
[1757294244297,1.49776114,881.41,879.51,0.7362071]
[1757294244494,1.49776114,881.41,879.52,0.7362071]
[1757294244798,1.49776114,881.42,879.52,0.7362071]
[1757294244997,1.49776114,881.47,879.5,0.7362071]
[1757294245399,1.49776114,881.47,879.51,0.7362071]
[1757294246000,1.49776114,881.47,879.14,0.1972722]
[1757294246001,1.49776114,881.75,879.44,0.7362071]
[1757294246197,1.49776114,881.8,879.45,0.7362071]
[1757294246401,1.49776114,881.79,879.46,0.7362071]
[1757294247400,1.49776114,881.78,879.47,0.7362071]
[1757294248107,1.49776114,881.79,879.48,0.7362071]
[1757294248298,1.49776114,881.82,879.48,0.7362071]
[1757294248499,0.19722469,882.24,879.49,0.7362071]
[1757294248500,1.49776114,881.81,879.49,0.7362071]
[1757294248897,1.49776114,881.8,879.49,0.7362071]
[1757294249301,1.49776114,881.79,879.49,0.7362071]
[1757294249502,1.49776114,881.79,879.5,0.7362071]
[1757294249701,1.49776114,881.87,879.48,0.7362071]
[1757294250298,1.49776114,881.88,879.48,0.7362071]
[1757294250502,1.49776114,881.87,879.49,0.7362071]
[1757294250702,1.49776114,881.87,879.49,1.9182071]
[1757294251302,1.49776114,881.86,879.51,0.7362071]
[1757294251501,1.49776114,881.82,879.52,0.7362071]
[1757294252396,1.49776114,881.81,879.54,0.7362071]
[1757294252797,1.49776114,881.8,879.53,0.7362071]
[1757294253504,1.49776114,881.79,879.56,0.7362071]
[1757294254102,1.49776114,881.76,879.57,0.7362071]
[1757294254304,1.49776114,881.74,879.6,0.7362071]
[1757294254504,1.49776114,881.73,879.6,0.7362071]
[1757294255304,1.49776114,881.7,879.64,0.7362071]
[1757294255803,1.49776114,881.69,879.64,0.7362071]
[1757294256104,1.49776114,881.87,879.87,0.7362071]
[1757294256403,1.49776114,881.84,879.91,0.7362071]
[1757294257204,1.49776114,881.84,879.65,1.01137193]
[1757294257404,1.49776114,881.84,879.91,0.75507354]
[1757294257599,1.49776114,881.84,879.92,0.75507354]
[1757294258004,1.49776114,881.82,879.92,0.75507354]
[1757294259009,1.49776114,881.92,879.91,0.75507354]
[1757294259303,1.49776114,882.01,879.98,0.75507354]
[1757294259503,1.49776114,881.98,879.99,0.75507354]
[1757294259707,1.49776114,882.01,879.99,0.75507354]
[1757294260606,1.49776114,882.02,879.99,0.75507354]
[1757294262406,1.49776114,882.03,879.99,0.75507354]
[1757294264206,1.49776114,882.33,879.99,0.75507354]
[1757294264406,1.49776114,882.03,880.21,0.75507354]
[1757294264706,1.49776114,882.06,880.2,0.75507354]
[1757294264911,1.49776114,882.1,880.19,0.75507354]
[1757294266111,0.19716099,882.39,879.87,0.75507354]
[1757294266112,1.49776114,881.78,879.87,0.75507354]
[1757294267309,1.49776114,881.78,879.86,0.75507354]
[1757294267509,1.49776114,881.79,879.86,0.75507354]
[1757294268307,1.49776114,881.8,879.86,0.75507354]
[1757294269413,1.49776114,881.8,879.85,0.75507354]
[1757294270412,1.49776114,881.79,879.86,0.75507354]
[1757294270816,1.49776114,881.8,879.87,0.75507354]
[1757294271014,1.49776114,881.79,879.86,0.75507354]
[1757294271414,1.49776114,881.79,879.87,0.75507354]
[1757294272315,1.49776114,881.78,879.89,0.75507354]
[1757294272710,1.49776114,881.78,879.89,0.75452219]
[1757294273414,1.49776114,881.77,879.9,0.75452219]
[1757294273615,1.01162248,881.51,879.9,0.75452219]
[1757294274216,1.01162248,881.47,879.92,0.75452219]
[1757294274413,1.01162248,881.41,879.95,0.75452219]
[1757294274612,1.01162248,881.42,879.95,0.75452219]
[1757294274917,0.70687219,881.37,879.97,0.75452219]
[1757294275314,1.49776114,881.63,879.95,0.75452219]
[1757294275518,1.49776114,881.65,879.96,0.75452219]
[1757294276018,1.49776114,881.76,880.07,0.75452219]
[1757294276513,1.49776114,881.75,880.08,0.75452219]
[1757294277112,1.49776114,881.76,880.09,0.75452219]
[1757294277318,1.49776114,881.75,880.09,0.75452219]
[1757294278119,1.49776114,881.73,880.1,0.75452219]
[1757294279616,1.49776114,881.84,880.07,0.75452219]
[1757294279818,1.49776114,881.84,879.83,1.01137193]
[1757294279819,1.49776114,881.82,880.08,0.75452219]
[1757294280018,1.49776114,881.81,880.06,0.75452219]
[1757294281918,1.49776114,881.79,880.06,0.75452219]
[1757294282325,1.49776114,881.79,880.07,0.75452219]
[1757294282520,1.49776114,881.66,879.95,0.75452219]
[1757294282822,1.49776114,881.67,879.95,0.75452219]
[1757294283324,1.49776114,881.67,879.96,0.75452219]
[1757294283527,1.49776114,881.57,879.99,0.75452219]
[1757294283731,1.49776114,881.54,879.96,0.75452219]
[1757294284726,1.49776114,881.53,879.97,0.75452219]
[1757294285426,1.49776114,881.65,879.93,0.75452219]
[1757294285627,1.49776114,881.66,879.94,0.75452219]
[1757294285831,1.49776114,881.67,879.95,0.75452219]
[1757294286027,1.49776114,881.68,879.96,0.75452219]
[1757294286232,1.49776114,881.68,879.97,0.75452219]
[1757294286828,1.49776114,881.66,879.98,0.75452219]
[1757294288533,1.49776114,881.64,879.99,0.75452219]
[1757294288827,1.49776114,881.69,880.04,0.75452219]
[1757294289032,1.49776114,881.7,880.05,0.75452219]
[1757294289333,1.49776114,881.58,880.09,0.75452219]
[1757294289533,1.49776114,881.6,880.12,0.75452219]
[1757294289832,1.49776114,881.76,880.15,0.75452219]
[1757294290032,1.49776114,881.84,880.16,0.75452219]
[1757294290328,1.49776114,881.85,880.17,0.75452219]
[1757294290730,1.49776114,881.85,880.18,0.75452219]
[1757294291136,1.49776114,881.87,880.17,0.75452219]
[1757294291531,1.49776114,881.88,880.17,0.75452219]
[1757294292332,1.49776114,881.88,880.18,0.75452219]
[1757294293036,1.49776114,881.88,880.17,0.75452219]
[1757294293333,1.49776114,881.87,880.18,0.75452219]
[1757294294231,1.49776114,881.83,880.19,0.75452219]
[1757294294430,1.49776114,881.83,880.2,0.75452219]
[1757294294935,1.49776114,881.83,880.21,1.523]
[1757294295433,1.49776114,881.85,880.21,1.523]
[1757294296031,1.49776114,882.04,880.38,0.75452219]
[1757294296236,1.49776114,882.04,880.21,1.523]
[1757294296237,1.49776114,882.28,880.31,0.75452219]
[1757294298731,1.49776114,882.32,880.34,0.75452219]
[1757294298936,1.49776114,882.29,880.35,0.75452219]
[1757294299232,1.49776114,882.35,880.38,0.75452219]
[1757294300235,1.49776114,882.36,880.37,0.75452219]
[1757294300434,1.49776114,882.35,880.38,0.75452219]
[1757294300736,1.49776114,882.36,880.38,0.75452219]
[1757294301137,1.49776114,882.37,880.38,0.75452219]
[1757294301334,1.49776114,882.36,880.38,0.75452219]
[1757294301938,1.49776114,882.35,880.39,0.75452219]
[1757294302436,1.49776114,882.37,880.38,0.75452219]
[1757294303439,1.49776114,882.36,880.39,0.75452219]
[1757294303637,1.49776114,882.37,880.39,0.75452219]
[1757294303937,1.49776114,882.36,880.39,0.75452219]
[1757294304338,1.49776114,882.17,880.46,0.75452219]
[1757294304842,1.01315582,881.91,880.46,0.75452219]
[1757294305239,1.01315582,881.91,880.45,0.75452219]
[1757294305438,1.01315582,881.97,880.44,0.75452219]
[1757294305942,1.01315582,881.61,880.21,1.523]
[1757294306143,1.01315582,881.64,880.21,1.523]
[1757294308646,1.01315582,881.62,880.21,1.523]
[1757294308946,1.01315582,881.61,880.21,1.523]
[1757294309343,1.01315582,881.6,880.21,1.523]
[1757294309944,1.01315582,881.59,880.21,1.523]
[1757294311048,1.49776114,881.86,880.21,1.523]
[1757294311049,1.01315582,881.58,880.21,1.523]
[1757294311348,1.01315582,881.59,880.21,1.523]
[1757294312349,1.01315582,881.57,880.21,1.523]
[1757294314253,1.01315582,881.55,880.21,1.523]
[1757294315351,1.01315582,881.49,880.21,1.523]
[1757294315552,1.01315582,881.48,880.21,1.523]
[1757294316154,1.01315582,881.59,880.38,0.75452219]
[1757294316352,1.01315582,881.58,880.39,0.75452219]
[1757294317455,0.71606426,881.58,880.39,0.75452219]
[1757294317753,0.71606426,881.58,880.4,0.75452219]
[1757294317951,0.71606426,881.58,880.41,0.75452219]
[1757294318350,1.49776114,881.78,880.41,0.75452219]
[1757294318955,1.49776114,881.78,880.42,0.75452219]
[1757294319451,1.49776114,881.77,880.42,0.75452219]
[1757294321056,1.49776114,881.68,880.45,0.75452219]
[1757294321458,1.49776114,881.68,880.27,1.01137193]
[1757294321459,1.49776114,881.67,880.46,0.75452219]
[1757294322256,1.49776114,881.64,880.47,0.75452219]
[1757294322462,1.49776114,881.63,880.47,0.75452219]
[1757294323155,1.49776114,881.64,880.47,0.75452219]
[1757294323356,1.49776114,881.63,880.48,0.75452219]
[1757294324660,2.54488766,882.34,880.48,0.75452219]
[1757294324661,1.49776114,881.66,880.48,0.75452219]
[1757294324860,1.49776114,881.66,880.3,1.01137193]
[1757294324861,1.49776114,881.69,880.5,0.75452219]
[1757294325061,1.49776114,881.65,880.51,0.75452219]
[1757294325258,1.49776114,881.75,880.59,0.75452219]
[1757294325461,1.06854612,881.75,880.59,0.75452219]
[1757294325862,2.54488766,882.45,880.58,0.75452219]
[1757294326463,2.54488766,882.45,880.57,0.75452219]
[1757294327160,2.54488766,882.45,880.36,0.75452219]
[1757294327364,2.54488766,882.21,880.39,0.75452219]
[1757294327760,2.54488766,882.21,880.38,0.75452219]
[1757294328063,2.54488766,882.27,880.33,0.75452219]
[1757294328362,3.53847231,882.55,880.32,0.75452219]
[1757294328363,2.54488766,882.12,880.32,0.75452219]
[1757294328560,2.54488766,882.12,880.27,0.75452219]
[1757294328961,2.54488766,882.07,880.27,0.75452219]
[1757294329263,2.54488766,882.07,880.26,0.75452219]
[1757294329469,2.54488766,882.08,880.21,1.523]
[1757294330065,2.54488766,882.09,880.21,1.523]
[1757294330962,2.54488766,882.08,880.21,1.523]
[1757294332068,2.54488766,882.12,880.21,1.523]
[1757294334164,2.54488766,882.11,880.21,1.523]
[1757294334569,2.54488766,882.12,880.21,1.523]
[1757294336171,2.54488766,882.01,880.21,1.523]
[1757294336772,2.54488766,882.02,880.21,1.523]
[1757294337373,2.54488766,882.03,880.21,1.523]
[1757294338270,2.54488766,882.02,880.21,1.523]
[1757294338772,2.54488766,882.32,880.21,1.523]
[1757294339272,2.54488766,882.26,880.21,1.523]
[1757294340377,2.54488766,882.29,880.21,1.523]
[1757294340874,2.54488766,882.44,880.21,1.523]
[1757294341677,2.54488766,882.49,880.21,1.523]
[1757294341978,2.54488766,882.5,880.21,1.523]
[1757294342575,2.54488766,882.52,880.21,1.523]
[1757294344078,2.54488766,882.51,880.21,1.523]
[1757294344675,2.54488766,882.36,880.21,1.523]
[1757294345078,2.54488766,882.35,880.21,1.523]
[1757294345379,1.52196206,881.39,880.21,1.523]
[1757294346081,1.52196206,881.54,880.21,1.523]
[1757294346780,1.52196206,881.55,880.21,1.523]
[1757294346978,1.52196206,881.65,880.21,1.523]
[1757294347383,1.01449893,881.47,880.21,1.523]
[1757294349482,1.01449893,881.48,880.21,1.523]
[1757294349679,1.01449893,881.5,880.21,1.523]
[1757294350480,1.01449893,881.53,880.21,1.523]
[1757294350782,1.01449893,881.64,880.21,1.523]
[1757294351280,1.01449893,881.6,880.21,1.523]
[1757294353780,1.01449893,881.6,880.11,1.01137193]
[1757294353985,1.01449893,881.67,880.07,1.01137193]
[1757294354285,1.01449893,881.86,880.18,1.01137193]
[1757294354684,1.01449893,881.8,880.29,1.01137193]
[1757294355284,1.01449893,881.81,880.28,1.01137193]
[1757294355797,1.01449893,881.8,880.27,1.01137193]
[1757294355987,1.01449893,881.63,880.1,1.01137193]
[1757294356185,1.01449893,881.62,880.28,1.324]
[1757294356389,1.01449893,881.63,880.28,1.324]
[1757294357486,0.73313564,881.63,880.28,1.324]
[1757294357789,1.52196206,881.87,880.33,0.75592502]
[1757294359190,1.52196206,881.86,880.34,0.75592502]
[1757294360194,1.52196206,881.87,880.34,0.75592502]
[1757294361596,1.52196206,881.87,880.33,0.75592502]
[1757294362498,1.52196206,882.01,880.47,0.75592502]
[1757294362698,1.52196206,882.11,880.53,0.75592502]
[1757294363000,1.52196206,882.1,880.52,0.75592502]
[1757294363297,1.52196206,882.11,880.5,0.75592502]
[1757294363593,3.53847231,883.49,880.52,0.75592502]
[1757294363594,1.52196206,882.44,880.52,0.75592502]
[1757294363897,1.52196206,882.43,880.54,0.75592502]
[1757294364297,1.52196206,882.44,880.51,0.75592502]
[1757294365193,0.1970488,883.1,880.49,0.75592502]
[1757294365194,1.52196206,882.45,880.49,0.75592502]
[1757294365699,1.52196206,882.47,880.5,0.75592502]
[1757294365995,1.52196206,882.46,880.49,0.75592502]
[1757294366193,1.52196206,882.46,880.47,0.75592502]
[1757294366398,1.52196206,882.47,880.47,0.75592502]
[1757294367296,1.52196206,882.48,880.45,0.75592502]
[1757294367493,2.54488766,883.65,880.53,0.75592502]
[1757294367494,1.52196206,882.37,880.53,0.75592502]
[1757294367697,1.52196206,882.6,880.55,0.75592502]
[1757294367894,1.52196206,882.63,880.59,0.75592502]
[1757294368099,1.52196206,882.65,880.61,0.75592502]
[1757294368399,1.52196206,882.68,880.57,0.75592502]
[1757294368999,1.52196206,882.67,880.59,0.75592502]
[1757294369196,1.52196206,882.68,880.56,0.75592502]
[1757294369797,1.52196206,882.68,880.28,1.324]
[1757294369798,1.52196206,882.66,880.57,0.75592502]
[1757294370205,1.52196206,882.68,880.54,0.75592502]
[1757294371203,1.52196206,882.69,880.51,0.75592502]
[1757294372302,1.52196206,882.81,880.54,0.75592502]
[1757294372605,1.52196206,882.82,880.54,0.75592502]
[1757294373205,1.52196206,882.83,880.52,0.75592502]
[1757294373400,1.52196206,882.79,880.53,0.75592502]
[1757294373605,1.52196206,882.81,880.54,0.75592502]
[1757294374203,1.52196206,882.82,880.52,0.75592502]
[1757294374402,1.52196206,882.82,880.51,0.75592502]
[1757294375206,1.52196206,882.83,880.49,0.75592502]
[1757294375905,1.52196206,882.88,880.53,0.75592502]
[1757294376313,1.52196206,882.88,880.28,1.324]
[1757294376314,1.52196206,882.89,880.51,0.75592502]
[1757294377209,1.52196206,882.9,880.49,0.75592502]
[1757294377510,1.52196206,882.9,880.48,0.75592502]
[1757294377709,1.52196206,882.9,878.79,2.52277131]
[1757294377710,1.52196206,882.84,880.53,0.75592502]
[1757294377910,1.52196206,883.07,880.66,0.75592502]
[1757294378108,1.52196206,883.13,880.65,0.75592502]
[1757294378312,1.52196206,883.17,880.64,0.75592502]
[1757294378513,1.52196206,883.16,880.64,0.75592502]
[1757294378713,1.52196206,883.17,880.64,0.75592502]
[1757294379209,1.52196206,883.18,880.61,0.75592502]
[1757294379512,1.52196206,883.18,880.6,0.75592502]
[1757294380210,1.52196206,883.19,880.61,1.272]
[1757294381216,1.52196206,883.2,880.61,1.272]
[1757294381515,1.52196206,883.21,880.61,1.272]
[1757294382416,1.52196206,883.19,880.61,1.272]
[1757294382616,1.52196206,883.0,880.61,1.272]
[1757294383319,1.52196206,882.85,880.61,1.272]
[1757294384013,1.52196206,882.79,880.61,1.272]
[1757294384417,1.52196206,882.76,880.61,1.272]
[1757294384716,1.52196206,882.74,880.61,1.272]
[1757294384916,1.52196206,882.73,880.61,1.272]
[1757294385117,1.52196206,882.74,880.61,1.272]
[1757294385516,1.52196206,882.8,880.61,1.272]
[1757294386016,1.52196206,883.07,880.65,0.75592502]
[1757294386216,1.52196206,883.05,880.65,0.75592502]
[1757294387213,1.52196206,883.05,880.64,0.75592502]
[1757294387414,1.00227234,882.84,880.64,0.75592502]
[1757294388219,1.00227234,882.84,880.63,0.75592502]
[1757294388514,1.00227234,882.84,880.61,1.272]
[1757294388515,1.00227234,882.88,880.62,0.75592502]
[1757294389321,1.00227234,882.88,880.61,2.02792502]
[1757294390123,1.00227234,882.87,880.61,2.02792502]
[1757294390318,1.00227234,882.88,880.61,1.272]
[1757294390725,1.00227234,882.88,880.61,2.02792502]
[1757294392222,1.00227234,882.68,880.62,0.75592502]
[1757294392421,1.00227234,882.67,880.63,0.75592502]
[1757294392720,1.00227234,882.67,880.62,0.75592502]
[1757294393221,1.00227234,882.67,880.61,1.272]
[1757294393423,1.00227234,882.66,880.62,0.74576674]
[1757294393825,1.00227234,882.64,880.61,2.01776674]
[1757294394023,1.00227234,882.6,880.61,1.272]
[1757294394226,1.00227234,882.56,880.61,1.272]
[1757294394522,1.00227234,882.57,880.61,1.272]
[1757294394921,1.00227234,882.59,880.61,1.272]
[1757294395221,1.00227234,882.5,880.61,1.272]
[1757294395422,1.00227234,882.47,880.61,1.272]
[1757294396134,1.00227234,882.35,880.61,1.272]
[1757294396339,1.00227234,882.34,880.61,1.272]
[1757294396535,1.00227234,882.39,880.61,1.272]
[1757294397236,1.00227234,882.38,880.61,1.272]
[1757294397436,1.00227234,882.37,880.61,1.272]
[1757294398438,1.00227234,882.34,880.61,1.272]
[1757294398738,1.00227234,882.28,880.61,1.272]
[1757294399437,1.00227234,882.27,880.61,1.272]
[1757294399742,1.00227234,882.28,880.61,1.272]
[1757294399941,1.00227234,882.32,880.61,1.272]
[1757294400840,1.00227234,882.33,880.61,1.272]
[1757294401436,1.00227234,882.32,880.61,1.272]
[1757294402242,1.00227234,882.31,880.61,1.272]
[1757294402538,1.00227234,882.23,880.61,1.272]
[1757294402741,1.00227234,882.24,880.61,1.272]
[1757294403146,1.00227234,882.23,880.61,1.272]
[1757294404237,1.00227234,882.22,880.61,1.272]
[1757294405142,1.00227234,882.21,880.61,1.272]
[1757294405339,1.00227234,882.2,880.61,1.272]
[1757294405953,1.00227234,882.13,880.61,1.272]
[1757294406248,1.00227234,882.12,880.61,1.272]
[1757294406452,1.00227234,882.09,880.61,1.272]
[1757294407151,1.00227234,882.08,880.61,1.272]
[1757294408157,1.00227234,882.07,880.61,1.272]
[1757294409352,1.00227234,882.06,880.61,1.272]
[1757294409655,1.00227234,882.05,880.61,1.272]
[1757294409854,1.00227234,882.04,880.61,1.272]
[1757294410056,1.00227234,882.07,880.61,1.272]
[1757294410258,1.00227234,882.05,880.61,1.272]
[1757294410556,1.00227234,882.06,880.61,1.272]
[1757294410754,1.00227234,882.09,880.61,1.272]
[1757294411256,1.00227234,882.08,880.61,1.272]
[1757294412156,1.00227234,882.02,880.61,1.272]
[1757294412457,1.00227234,882.01,880.61,1.272]
[1757294412658,1.00227234,882.04,880.61,1.272]
[1757294412854,1.00227234,882.07,880.61,1.272]
[1757294413354,1.00227234,882.17,880.61,1.272]
[1757294413653,1.00227234,882.25,880.61,1.272]
[1757294414355,1.00227234,882.24,880.61,1.272]
[1757294414957,1.00227234,882.22,880.61,2.0193605]
[1757294415259,1.00227234,882.22,880.62,0.7473605]
[1757294415456,1.00227234,882.31,880.65,0.7473605]
[1757294415654,1.00227234,882.34,880.71,0.7473605]
[1757294415862,1.00227234,882.4,880.74,0.7473605]
[1757294416160,1.00227234,882.4,880.61,1.272]
[1757294416161,1.00227234,882.47,880.78,0.7473605]
[1757294416363,1.00227234,882.48,880.8,0.7473605]
[1757294417067,1.00227234,882.48,880.81,0.7473605]
[1757294417365,0.19696627,883.45,880.82,0.7473605]